[Event "Reykjavik Open 2025"]
[Site "Reykjavik"]
[Date "2025.04.14"]
[Round "8.4"]
[White "Banusz, Tamas"]
[Black "Sivuk, Vitaly"]
[Result "1/2-1/2"]
[Annotator "TA"]
[ECO "A08"]
[WhiteElo "2592"]
[BlackElo "2505"]
[PlyCount "100"]
[EventDate "2025.04.09"]
[EventType "swiss"]
[EventCountry "ISL"]
[SourceTitle "playchess.com"]
[Source "ChessBase"]
[SourceQuality "1"]
[TimeControl "40/5400+30:1800+30"]

{[%evp 9,100,16,25,16,30,20,27,26,28,31,31,29,29,32,29,29,34,35,84,83,97,93,94,49,55,45,44,53,55,48,49,60,61,0,0,0,0,0,0,0,0,0,58,61,54,59,61,54,68,51,57,48,51,50,59,42,52,34,41,41,45,45,55,8,8,8,12,2,15,0,0,0,2,2,2,2,2,2,16,16,16,2,2,2,2,2,2,2,2,2,2,0,13]} 1. Nf3 {[%emt 0:00:03]} Nf6 {[%emt 0:03:32]} 2. g3 {[%emt 0:00:07]} d5 {[%emt 0:00:20]} 3. Bg2 {[%emt 0:00:11]} c5 {[%emt 0:00:12]} 4. O-O {[%emt 0:00:15]} g6 {[%emt 0:00:10]} 5. c4 {[%emt 0:00:20]} Bg7 {[%emt 0:00:16]} 6. Qa4+ {[%emt 0:00:18] A08: King's Indian Attack.} Qd7 {[%emt 0:10:59]} 7. Qxd7+ {[%emt 0:00:23]} Nbxd7 {[%emt 0:02:54]} 8. cxd5 {[%emt 0:00:10] White has an edge.} Nxd5 {[%emt 0:00:07]} 9. Nc3 {[%emt 0:00:13]} e6 $146 {[%emt 0:01:59] [#]} (9... N7f6 10. Ng5 e6 11. Nge4 Nxe4 12. Bxe4 Nf6 13. Bg2 Rb8 14. d4 cxd4 15. Bf4 Ra8 {1-0 Artemiev,V (2714)-Lagno,K (2542) Moscow Region Group Cup rapid 2023 (11)}) 10. d4 $1 {[%emt 0:06:08]} b6 {[%emt 0:06:22]} 11. Nxd5 {[%emt 0:11:58]} exd5 {[%emt 0:00:07]} 12. Rd1 {[%emt 0:02:32]} Bb7 {[%emt 0:00:24]} 13. Be3 {[%emt 0:05:45]} c4 {[%emt 0:11:50]} (13... O-O $14) 14. Nd2 $16 {[%emt 0:03:15]} b5 {[%emt 0:04:57]} 15. a4 {[%emt 0:01:20]} a6 {[%emt 0:00:17][%cal Ba7a6,Ba6b5,Bb5b4][%mdl 32]} (15... b4 16. Nxc4 O-O 17. Na5 $18) 16. axb5 {[%emt 0:01:32]} axb5 {[%emt 0:00:05]} 17. Rxa8+ {[%emt 0:00:03]} Bxa8 {[%emt 0:00:10]} 18. Ra1 {[%emt 0:00:21]} O-O {[%emt 0:10:19]} 19. Ra5 {[%emt 0:01:34]} Bc6 {[%emt 0:05:04]} 20. Nb1 {[%emt 0:02:36]} Nb6 {[%emt 0:15:55]} 21. Nc3 {[%emt 0:02:17]} (21. Ra6 $14 Rb8 22. Bf4) 21... b4 $11 {[%emt 0:02:46]} 22. Nxd5 {[%emt 0:00:55]} (22. Bxd5 Ra8 (22... bxc3 23. Bxc6 Rc8 24. bxc3 $11) 23. Rc5 (23. Rxa8+ $2 Bxa8 24. Bxa8 bxc3 $19) 23... bxc3 24. Rxc6 Nxd5) 22... Bxd5 {[%emt 0:00:28]} 23. Bxd5 {[%emt 0:00:04]} Rd8 {[%emt 0:00:19]} 24. Be4 {[%emt 0:01:46]} Bxd4 {[%emt 0:00:47]} 25. Rb5 {[%emt 0:03:41][%csl LRb4,LRb6]} Bxe3 {[%emt 0:12:25]} ({Black should play} 25... b3 $1 $11 26. Bxd4 (26. Rxb6 Bxb6 27. Bxb6 Rd1+ 28. Kg2 c3 $19) 26... Rxd4 27. Rxb6 Rxe4 28. Rb8+ Kg7) 26. fxe3 {[%emt 0:00:20][%mdl 4096] Endgame KRB-KRN} Rd1+ {[%emt 0:00:33]} 27. Kf2 {[%emt 0:03:10]} Nd7 {[%emt 0:00:05]} 28. Rxb4 {[%emt 0:00:52]} Nf6 {[%emt 0:02:03]} 29. Bf3 {[%emt 0:03:57]} (29. Rxc4 $2 {loses.} Ng4+ 30. Kf3 Ne5+ (30... Nxh2+ 31. Kf4 $16) 31. Kf2 Nxc4 $19) 29... Rc1 {[%emt 0:00:11]} 30. Rb6 {[%emt 0:11:03]} Kg7 {[%emt 0:00:34]} 31. Rb7 {[%emt 0:10:12]} c3 {[%emt 0:00:30]} 32. bxc3 {[%emt 0:00:05]} Rxc3 {[%emt 0:00:05]} 33. h3 {[%emt 0:01:09]} Rc4 {[%emt 0:01:33]} 34. g4 {[%emt 0:00:17]} h6 {[%emt 0:00:53]} 35. Ra7 {[%emt 0:00:23]} Ne4+ {[%emt 0:01:50]} 36. Bxe4 {[%emt 0:00:24]} (36. Kg2 $14 {feels stronger.}) 36... Rxe4 $14 {[%emt 0:00:06] KR-KR. White is a pawn up. The position is equal.} 37. Kf3 {[%emt 0:00:27]} Rb4 {[%emt 0:00:15]} 38. Ra5 {[%emt 0:00:26]} g5 {[%emt 0:00:40]} 39. h4 {[%emt 0:06:13]} gxh4 {[%emt 0:00:08]} 40. Rh5 {[%emt 0:00:03]} Kg6 {[%emt 0:01:06]} 41. Rxh4 {[%emt 0:30:12]} Rb1 {[%emt 0:30:13]} 42. Rh5 {[%emt 0:01:54]} Rf1+ {[%emt 0:02:43]} 43. Kg2 {[%emt 0:00:07]} Re1 {[%emt 0:00:34]} 44. Kf2 {[%emt 0:00:03]} Ra1 {[%emt 0:00:06]} 45. Rb5 {[%emt 0:00:06]} Rh1 {[%emt 0:00:20]} 46. e4 {[%emt 0:01:02]} Rh3 {[%emt 0:00:17]} 47. e5 {[%emt 0:01:28]} h5 {[%emt 0:01:50]} 48. gxh5+ {[%emt 0:05:02]} Rxh5 {[%emt 0:00:06]} 49. Kf3 {[%emt 0:00:05]} Rh4 {[%emt 0:00:17]} 50. e4 {[%emt 0:00:11]} Kg7 {[%emt 0:00:28] Weighted Error Value: White=0.05 (flawless) /Black=0.06 (flawless)   Mistake:       	White=2     	Black=2      Inaccurate:     	White=1     	---        OK:         	White=23    	Black=13     Best:        	White=1     	Black=5} 1/2-1/2

[Event "Reykjavik Open 2025"]
[Site "Reykjavik"]
[Date "2025.04.14"]
[Round "8.5"]
[White "Gupta, Abhijeet"]
[Black "Prraneeth Vuppala"]
[Result "1-0"]
[Annotator "TA"]
[ECO "D37"]
[WhiteElo "2576"]
[BlackElo "2433"]
[PlyCount "77"]
[EventDate "2025.04.09"]
[EventType "swiss"]
[EventCountry "ISL"]
[SourceTitle "playchess.com"]
[Source "ChessBase"]
[SourceQuality "1"]
[TimeControl "40/5400+30:1800+30"]

{[%evp 9,77,35,33,27,33,22,37,9,16,0,12,0,13,12,44,38,110,87,83,89,117,117,156,123,132,120,127,127,117,117,123,112,128,125,113,114,119,109,105,93,97,96,96,85,85,85,85,85,85,84,82,83,218,217,572,558,581,581,579,581,541,541,640,631,1172,1104,29969,5840,29978,29979]} 1. d4 {[%emt 0:00:04]} d5 {[%emt 0:00:20]} 2. c4 {[%emt 0:00:12]} e6 {[%emt 0:00:12]} 3. Nc3 {[%emt 0:00:22]} Nf6 {[%emt 0:00:34]} 4. Nf3 {[%emt 0:00:18]} h6 {[%emt 0:00:45]} 5. Bf4 {[%emt 0:00:39]} Bb4 {[%emt 0:02:59]} 6. e3 {[%emt 0:08:35] D37: Queen's Gambit Declined: 5 Bf4.} O-O {[%emt 0:06:14]} 7. Qc2 {[%emt 0:04:41]} c5 {[%emt 0:03:14]} 8. a3 {[%emt 0:03:19] White is slightly better.} Bxc3+ {[%emt 0:00:43]} 9. bxc3 {[%emt 0:00:04]} Nc6 {[%emt 0:05:25]} 10. Be2 $5 $146 {[%emt 0:02:54][%mdl 8] New and interesting.} (10. h3 Na5 11. cxd5 exd5 12. dxc5 Ne4 13. Be2 Bf5 14. Bd3 Rc8 15. Be5 Rxc5 16. O-O {0-1 Mikkelsen,P-Sharif,M Olympiad-20 Preliminaries H 1972 (5)}) 10... Re8 {[%emt 0:09:33]} 11. O-O {[%emt 0:01:00]} Qa5 {[%emt 0:04:45]} 12. Rfc1 {[%emt 0:04:47]} Nd7 {[%emt 0:07:19]} (12... b6 $14) 13. Bg3 {[%emt 0:01:45] A sharp opening} Nb6 {[%emt 0:01:54]} 14. Nd2 {[%emt 0:00:58]} dxc4 {[%emt 0:07:01]} 15. Bc7 {[%emt 0:04:33] White is more active.} Qa4 {[%emt 0:04:46]} 16. Bxb6 {[%emt 0:02:26]} ({Resist} 16. dxc5 Qxc2 17. Rxc2 Na4 $16) 16... Qxc2 {[%emt 0:04:55]} 17. Rxc2 {[%emt 0:00:04]} axb6 {[%emt 0:00:04]} 18. Nxc4 {[%emt 0:00:06]} cxd4 {[%emt 0:01:06]} 19. cxd4 {[%emt 0:00:11]} b5 {[%emt 0:04:22]} 20. Nb6 {[%emt 0:01:27]} Ra6 {[%emt 0:02:58]} 21. Nxc8 {[%emt 0:01:40]} Rxc8 {[%emt 0:00:03]} 22. Bxb5 {[%emt 0:00:08]} Ra5 {[%emt 0:00:10]} 23. a4 {[%emt 0:01:38]} Na7 {[%emt 0:03:14][%csl LRb5,LRc2]} 24. Rxc8+ {[%emt 0:09:34]} Nxc8 $16 {[%emt 0:00:41][%mdl 4096] Endgame KRB-KRN. White is a pawn up.} 25. Rb1 {[%emt 0:03:04]} Nd6 {[%emt 0:02:21]} 26. g4 {[%emt 0:01:21]} Nxb5 {[%emt 0:02:25]} 27. axb5 {[%emt 0:00:04] KR-KR. White is a pawn up.} (27. Rxb5 Rxa4 28. h4 (28. Rxb7 e5 $14) 28... Kf8 $14) 27... b6 {[%emt 0:02:12]} 28. h4 {[%emt 0:01:00]} Ra4 {[%emt 0:01:46][%cal Oe6e5]} 29. Kh2 {[%emt 0:02:50]} e5 {[%emt 0:07:40]} 30. Rd1 {[%emt 0:02:15]} Rb4 {[%emt 0:01:17] This move loses the game for Black.} (30... exd4 $16 31. Rxd4 Ra2) 31. dxe5 $18 {[%emt 0:00:33]} Rxg4 $2 {[%emt 0:07:17]} (31... Kf8 32. Rd8+ Ke7) 32. Rd4 {[%emt 0:00:32]} Rg6 {[%emt 0:01:27]} 33. f4 {[%emt 0:00:13] [#]} Re6 {[%emt 0:03:36]} 34. Rd8+ {[%emt 0:00:11]} Kh7 {[%emt 0:00:01]} 35. Rd6 {[%emt 0:00:09]} Re7 {[%emt 0:02:55]} 36. Rxb6 {[%emt 0:00:07]} f6 {[%emt 0:00:10][%cal Bf7f6,Bf6f5][%mdl 32]} 37. e6 {[%emt 0:00:26] [#] aiming for f5.} f5 {[%emt 0:01:07]} 38. h5 {[%emt 0:00:11] White threatens Rc6 and mate.} g5 {[%emt 0:01:19]} 39. Rd6 {[%emt 0:00:05] Weighted Error Value: White=0.06 (flawless) /Black=0.72  Mistake:       	---       	Black=3      Inaccurate:     	White=1     	Black=4      OK:         	White=12    	Black=16     Best:        	White=2     	Black=1} 1-0

[Event "Reykjavik Open 2025"]
[Site "Reykjavik"]
[Date "2025.04.14"]
[Round "8.6"]
[White "Draskovic, Luka"]
[Black "Amar, Elham"]
[Result "0-1"]
[Annotator "TA"]
[ECO "A13"]
[WhiteElo "2488"]
[BlackElo "2546"]
[PlyCount "108"]
[EventDate "2025.04.09"]
[EventType "swiss"]
[EventCountry "ISL"]
[SourceTitle "playchess.com"]
[Source "ChessBase"]
[SourceQuality "1"]
[TimeControl "40/5400+30:1800+30"]

{[%evp 9,108,33,38,27,37,34,47,11,14,0,14,0,32,10,18,0,21,-25,-15,-13,-8,-15,-8,-40,-18,-31,-8,-34,-54,-43,-50,-61,-41,-53,-39,-54,-51,-38,-45,-75,-57,-52,-53,-60,-46,-49,-54,-56,-55,-60,-55,-58,-58,-58,-58,-58,-47,-50,-17,-81,-92,-79,-86,-88,-86,-89,-83,-132,-92,-99,-72,-87,-13,-59,-52,-65,-68,-61,-67,-83,-77,-134,-133,-113,-138,-141,-51,-150,-149,-287,-271,-464,-436,-522,-514,-529,-529,-532,-413,-397,-397]} 1. c4 {[%emt 0:00:04]} e6 {[%emt 0:01:45]} 2. g3 {[%emt 0:00:40]} d5 {[%emt 0:00:08]} 3. Bg2 {[%emt 0:00:32]} dxc4 {[%emt 0:02:35]} 4. Qa4+ {[%emt 0:04:36]} Nd7 {[%emt 0:00:07]} 5. Qxc4 {[%emt 0:00:54]} a6 {[%emt 0:01:10]} 6. Qc2 {[%emt 0:19:22] A13: English Opening: 1...e6.} Ngf6 {[%emt 0:00:38]} 7. Nc3 {[%emt 0:03:25]} Ra7 {[%emt 0:10:33]} 8. a4 {[%emt 0:08:04] White is slightly better.} b6 {[%emt 0:01:45]} 9. Nf3 {[%emt 0:01:10]} Bb7 {[%emt 0:02:31][%cal Od7e5]} 10. O-O {[%emt 0:01:25]} c5 {[%emt 0:00:36]} 11. d3 {[%emt 0:05:34]} Be7 {[%emt 0:01:25]} 12. e4 {[%emt 0:01:27]} O-O {[%emt 0:00:25]} 13. h3 {[%emt 0:01:21]} (13. Rd1 $142) 13... Nb8 $146 {[%emt 0:09:07][%cal Bd7b8,Bb8c6,Bc6d4,Bd4c2][%mdl 32]} (13... Qa8 14. b3 Nb8 15. Ne5 Nc6 16. Nxc6 Bxc6 17. Be3 Rd7 18. Nd1 Rc7 19. Nb2 Nd7 {1-0 Supi,L (2581)-Carrillo Parra,M (2251) American Continental 18th 2024 (8)}) 14. Rd1 {[%emt 0:07:13]} Nc6 {[%emt 0:00:10] Against d4} 15. Be3 {[%emt 0:00:34]} e5 {[%emt 0:02:26]} 16. Qb3 {[%emt 0:07:11]} Nd4 {[%emt 0:11:39]} 17. Qa2 {[%emt 0:06:47]} Nc2 {[%emt 0:13:11]} 18. Rac1 {[%emt 0:00:06]} (18. Nxe5 $5 Nxe3 19. fxe3 $11) 18... Nxe3 {[%emt 0:00:07]} 19. fxe3 {[%emt 0:00:04]} Bd6 {[%emt 0:00:42]} 20. Rf1 {[%emt 0:03:38]} Ra8 {[%emt 0:04:55]} 21. Nh4 {[%emt 0:01:29]} g6 {[%emt 0:01:56]} 22. Kh2 {[%emt 0:02:59]} Bc8 {[%emt 0:03:34]} (22... b5 23. Qb3 Bc6 24. Rf2 b4) 23. Nf3 {[%emt 0:02:13]} Be6 {[%emt 0:00:56]} 24. Qb1 {[%emt 0:00:17]} Rb8 {[%emt 0:02:34]} 25. Nd2 {[%emt 0:02:44]} h5 {[%emt 0:04:16]} 26. Kh1 {[%emt 0:03:49]} Bc7 {[%emt 0:02:16]} 27. Rf2 {[%emt 0:03:35]} b5 {[%emt 0:01:58]} 28. axb5 {[%emt 0:00:08]} axb5 {[%emt 0:00:02]} 29. Rcf1 {[%emt 0:01:53]} b4 {[%emt 0:01:12]} 30. Na4 {[%emt 0:01:31]} Nd7 {[%emt 0:00:05]} 31. b3 {[%emt 0:00:17]} Qg5 {[%emt 0:02:39][%csl LRe3,LRg3]} 32. Rf3 {[%emt 0:01:05]} Bd6 {[%emt 0:00:19]} 33. h4 {[%emt 0:03:19]} Qh6 {[%emt 0:01:44]} 34. Qe1 {[%emt 0:01:04]} (34. Nc4 $11 {remains equal.} Be7 35. Qc2) 34... Be7 $17 {[%emt 0:02:23]} 35. Kh2 {[%emt 0:01:27]} g5 {[%emt 0:02:02] Black is more active.} 36. Nc4 {[%emt 0:03:54]} Bg4 {[%emt 0:02:34]} 37. Rf5 {[%emt 0:01:41]} Bxf5 {[%emt 0:00:07]} 38. hxg5 {[%emt 0:00:23]} (38. Rxf5 $142 Rb7 39. Qf2) 38... Bxg5 {[%emt 0:00:40]} 39. Rxf5 {[%emt 0:00:02][%cal Og2h3]} f6 {[%emt 0:09:29]} 40. Bh3 {[%emt 0:00:12][%cal Of5g5] [#]} Rfd8 {[%emt 0:01:24]} (40... h4 $1 $17 41. Kg2 Rfd8 42. gxh4 Bxh4) 41. Rf3 {[%emt 0:31:03]} (41. Rf1 $11 {was preferable.}) 41... Nf8 {[%emt 0:31:19]} (41... h4 {feels hotter.} 42. gxh4 Bxh4 43. Qe2 Nf8) 42. Qe2 {[%emt 0:00:00]} h4 {[%emt 0:00:00]} 43. Nxc5 {[%emt 0:00:00]} hxg3+ {[%emt 0:00:00]} 44. Rxg3 {[%emt 0:00:00]} Rb5 {[%emt 0:00:00]} 45. Na4 {[%emt 0:00:00] [#]} (45. d4 $142 exd4 46. exd4) 45... Rb7 $1 {[%emt 0:00:00]} 46. Nab6 {[%emt 0:00:00]} Rg7 {[%emt 0:00:00]} 47. Nd5 {[%emt 0:00:00]} Rdd7 {[%emt 0:00:00]} (47... Kh8 $17 {aiming for ...Ne6.} 48. Nxb4 Ne6) 48. Nd2 {[%emt 0:00:00]} (48. Qf3 $15) 48... Bh4 {[%emt 0:00:00] Chess con chili.} 49. Rg4 {[%emt 0:00:00]} (49. Rg1 $17) 49... f5 $19 {[%emt 0:00:00]} 50. Rxg7+ {[%emt 0:00:00]} (50. Rg1 {is a better defense.}) 50... Rxg7 {[%emt 0:00:00]} 51. Nf1 {[%emt 0:00:00] Against Bg3+} f4 {[%emt 0:00:00]} 52. exf4 {[%emt 0:00:00]} exf4 {[%emt 0:00:00]} 53. Qf3 {[%emt 0:01:52]} Qg5 {[%emt 0:00:00]} 54. Bg2 {[%emt 0:00:33]} Ne6 {[%emt 0:00:00] Weighted Error Value: White=0.28 (precise) /Black=0.17 (very precise)   Mistake:       	White=8     	Black=2      Inaccurate:     	White=4     	Black=3      OK:         	White=14    	Black=20     Strong:       	---       	Black=1} 0-1

[Event "Reykjavik Open 2025"]
[Site "Reykjavik"]
[Date "2025.04.14"]
[Round "8.7"]
[White "Kadric, Denis"]
[Black "Garifullina, Leya"]
[Result "1/2-1/2"]
[Annotator "TA"]
[ECO "B23"]
[WhiteElo "2533"]
[BlackElo "2459"]
[PlyCount "80"]
[EventDate "2025.04.09"]
[EventType "swiss"]
[EventCountry "ISL"]
[SourceTitle "playchess.com"]
[Source "ChessBase"]
[SourceQuality "1"]
[TimeControl "40/5400+30:1800+30"]

{[%evp 9,80,0,7,6,6,0,0,0,0,0,0,0,0,0,8,-22,12,2,7,20,28,30,29,0,30,27,22,20,40,36,28,21,32,2,0,0,0,0,18,15,12,15,6,10,21,35,32,33,57,0,49,19,28,12,16,16,18,7,3,6,10,0,0,0,0,0,0,0,0,0,0,0,31]} 1. e4 {[%emt 0:00:02]} c5 {[%emt 0:00:08]} 2. Nc3 {[%emt 0:00:19]} d6 {[%emt 0:00:04]} 3. Bb5+ {[%emt 0:01:45]} Bd7 {[%emt 0:00:27]} 4. a4 {[%emt 0:00:05]} Nc6 {[%emt 0:01:17]} 5. d3 {[%emt 0:01:22]} a6 {[%emt 0:02:38]} 6. Bxc6 {[%emt 0:00:14] B23: Closed Sicilian: Lines without g3.} Bxc6 {[%emt 0:00:07]} 7. a5 {[%emt 0:00:02]} e6 $146 {[%emt 0:05:16]} (7... Nf6 8. f4 d5 9. Qe2 e6 10. Nf3 c4 11. O-O cxd3 12. cxd3 Bb4 13. e5 Ng4 {½-½ Balashov,Y (2408)-Sjugirov,S (2654) EU-ch 18th Minsk 2017 (1)}) 8. Nf3 {[%emt 0:06:32]} Nf6 {[%emt 0:01:18]} 9. O-O {[%emt 0:00:06]} Be7 {[%emt 0:00:17]} 10. Re1 {[%emt 0:12:35]} O-O {[%emt 0:06:34]} 11. h3 {[%emt 0:00:52]} Rc8 {[%emt 0:02:14]} 12. b3 {[%emt 0:19:50][%cal Bb2b3,Bb3b4][%mdl 32]} e5 {[%emt 0:08:39]} 13. Bd2 {[%emt 0:13:04]} Nd7 {[%emt 0:06:33]} 14. Nd5 {[%emt 0:00:03]} f5 {[%emt 0:01:06]} 15. c4 {[%emt 0:00:06]} Qe8 {[%emt 0:03:50]} 16. b4 {[%emt 0:04:46] And now Nxe7+ would win.} Bd8 {[%emt 0:04:49]} 17. bxc5 {[%emt 0:04:06]} (17. Qe2 Qe6 18. Bc3 Qg6 19. Rac1) 17... fxe4 {[%emt 0:07:07]} 18. dxe4 {[%emt 0:00:01]} Bxd5 {[%emt 0:00:13]} 19. exd5 {[%emt 0:15:40]} Nxc5 {[%emt 0:00:49]} 20. Be3 {[%emt 0:00:01]} Qg6 {[%emt 0:05:58] [#]} 21. Qb1 {[%emt 0:03:06]} Nd3 {[%emt 0:14:17]} (21... Rxf3 22. Qxg6 hxg6 23. gxf3 $16) 22. Rd1 {[%emt 0:00:03]} e4 {[%emt 0:03:32]} (22... Rxf3 23. Qxd3 (23. Rxd3 Rxc4 24. Qxb7 h6 $11) 23... e4 24. Qb1 Rxc4 25. Qxb7 Rxe3 26. Qd7 (26. fxe3 Rc2 $11)) 23. Nd2 {[%emt 0:00:03][%cal Oa1a4]} Qf5 {[%emt 0:08:57][%cal Rd3f2] [#]} 24. Nxe4 $1 {[%emt 0:05:46]} Qxe4 {[%emt 0:00:07]} 25. Rxd3 {[%emt 0:02:07] White wants to play Rd1.} Rxc4 {[%emt 0:00:16]} 26. Rb3 {[%emt 0:00:07]} Qxd5 {[%emt 0:03:55]} (26... Bf6 {simplifies} 27. Qxe4 Rxe4 28. Rab1 Ra4) 27. Rxb7 {[%emt 0:00:03]} Bf6 {[%emt 0:06:14]} 28. Ra3 {[%emt 0:00:34]} Rfc8 {[%emt 0:00:40]} 29. Rb8 {[%emt 0:04:40]} (29. Rb6 $14) 29... Be5 {[%emt 0:02:09]} (29... Rxb8 $1 $11 {feels stronger.} 30. Qxb8+ Kf7) 30. g3 {[%emt 0:01:35]} Qe6 {[%emt 0:01:48]} 31. Kg2 {[%emt 0:02:38]} d5 {[%emt 0:01:04] The position is equal.} (31... Qd5+ {seems wilder.} 32. Kh2 h5 33. Ra4 Rxb8 34. Qxb8+ Kf7) 32. Rxc8+ {[%emt 0:00:04]} Rxc8 {[%emt 0:00:06]} 33. Qb6 {[%emt 0:01:17]} Rc6 {[%emt 0:00:27]} 34. Qd8+ {[%emt 0:01:37] Counterplay Black} Kf7 {[%emt 0:00:04]} 35. Bd2 {[%emt 0:00:29]} Bf6 {[%emt 0:00:20]} 36. Qa8 {[%emt 0:01:15]} Rc2 {[%emt 0:00:43]} 37. Re3 {[%emt 0:00:17] Chess con chili.} Qc6 {[%emt 0:01:44] Successful Defense Black Prevents Qb7+.} 38. Qxc6 {[%emt 0:00:31]} Rxc6 {[%emt 0:00:04]} 39. Rb3 {[%emt 0:00:07]} Ke6 {[%emt 0:00:42]} 40. Kf3 {[%emt 0:00:10]} Bd8 {[%emt 0:00:56] Weighted Error Value: White=0.08 (flawless) /Black=0.07 (flawless)   Mistake:       	White=1     	Black=1      Inaccurate:     	White=4     	Black=3      OK:         	White=17    	Black=17     Best:        	White=1     	Black=1} 1/2-1/2

[Event "Reykjavik Open 2025"]
[Site "Reykjavik"]
[Date "2025.04.14"]
[Round "8.8"]
[White "Cornette, Matthieu"]
[Black "Bekker, Stefan"]
[Result "1-0"]
[Annotator "TA"]
[ECO "B94"]
[WhiteElo "2528"]
[BlackElo "2358"]
[PlyCount "51"]
[EventDate "2025.04.09"]
[EventType "swiss"]
[EventCountry "ISL"]
[SourceTitle "playchess.com"]
[Source "ChessBase"]
[SourceQuality "1"]
[TimeControl "40/5400+30:1800+30"]

{[%evp 11,51,20,44,6,36,7,30,0,22,8,37,29,26,30,50,52,67,26,82,104,62,12,67,-12,452,445,533,516,498,375,372,337,318,313,441,421,452,441,460,452,452,449]} 1. e4 {[%emt 0:00:05]} c5 {[%emt 0:00:05]} 2. Nf3 {[%emt 0:00:27]} d6 {[%emt 0:00:06]} 3. d4 {[%emt 0:00:35]} cxd4 {[%emt 0:00:05]} 4. Nxd4 {[%emt 0:00:04]} Nf6 {[%emt 0:00:07]} 5. Nc3 {[%emt 0:00:04]} a6 {[%emt 0:00:06]} 6. Bg5 {[%emt 0:00:21]} Nbd7 {[%emt 0:01:27]} 7. a3 {[%emt 0:01:12]} Qc7 {[%emt 0:09:07]} 8. Qd2 {[%emt 0:01:33]} e6 {[%emt 0:00:19]} 9. f3 {[%emt 0:01:12] White has an edge.} Be7 {[%emt 0:00:59]} 10. g4 {[%emt 0:01:10]} h5 {[%emt 0:01:44]} 11. gxh5 {[%emt 0:05:28]} Rxh5 {[%emt 0:02:50]} 12. h4 {[%emt 0:05:40]} b5 {[%emt 0:02:06]} 13. O-O-O {[%emt 0:01:27]} Rb8 {[%emt 0:02:54]} 14. Kb1 {[%emt 0:11:08]} Ne5 {[%emt 0:04:07]} (14... b4 $11 {keeps the balance.} 15. axb4 Rxb4) 15. f4 $16 {[%emt 0:04:02]} Nc4 {[%emt 0:00:17]} 16. Bxc4 {[%emt 0:00:35]} (16. Qe1 $14) 16... bxc4 $11 {[%emt 0:00:11]} 17. Ka1 {[%emt 0:00:49]} (17. e5 $14) 17... Qa5 $2 {[%emt 0:04:30][%mdl 8192] [#] This costs Black the game.} (17... Qb7 $11 18. Rb1 Nxe4 19. Nxe4 Qxe4) 18. Nc6 $18 {[%emt 0:02:45][%csl LRa5,LRb8]} Nxe4 {[%emt 0:15:35]} 19. Nxe4 {[%emt 0:01:38] Excellent horsemanship.} Qxd2 {[%emt 0:03:23]} 20. Rxd2 {[%emt 0:02:12]} Bb7 {[%emt 0:05:50]} 21. Bxe7 {[%emt 0:14:51]} Bxc6 {[%emt 0:04:31]} 22. Bxd6 {[%emt 0:00:03]} c3 {[%emt 0:17:43]} (22... Bxe4 $2 {is the wrong capture.} 23. Re1 $18) (22... Rd8 {was worth a try.} 23. Re1 Ba8) 23. bxc3 {[%emt 0:01:02] White is clearly winning.} ({Resist} 23. Nxc3 Rxb2 24. Rg1 Rb7 25. Rxg7 f6) 23... Rd8 {[%emt 0:11:42]} ({Don't play} 23... Bxe4 24. Re1) 24. Re1 {[%emt 0:00:20]} Rxh4 {[%emt 0:00:21]} 25. Nc5 {[%emt 0:02:28]} Rh5 {[%emt 0:06:22]} 26. Nxa6 {[%emt 0:01:50] Weighted Error Value: White=0.33/Black=0.56.  Loses game:     	---       	Black=1      Mistake:       	White=2     	Black=2      Inaccurate:     	White=3     	Black=3      OK:         	White=10    	Black=5      Best:        	---       	Black=2} 1-0